fUSD/lending_fUSD_20260513
["ID","MTS","AMOUNT","RATE_DAILY","PERIOD"]
[422175531,1778647847000,-500.0,0.00041283,60]
[422175537,1778647847000,-500.0,0.00041283,60]
[422175540,1778647847000,-500.0,0.00041283,60]
[422175535,1778647847000,-500.0,0.00041283,60]
[422175534,1778647847000,-500.0,0.00041283,60]
[422175514,1778647847000,-296.97940708,0.00041282,6]
[422175539,1778647847000,-500.0,0.00041283,60]
[422175529,1778647847000,-500.0,0.00041283,60]
[422175516,1778647847000,-25000.0,0.00041283,15]
[422175500,1778647847000,-1107.202896,0.00041276,120]
[422175515,1778647847000,-25000.0,0.00041283,15]
[422175485,1778647847000,-493.245132,0.00041274,120]
[422175484,1778647847000,-493.245132,0.00041274,120]
[422175538,1778647847000,-500.0,0.00041283,60]
[422175486,1778647847000,-151.0,0.00041274,120]
[422175487,1778647847000,-493.245132,0.00041274,120]
[422175489,1778647847000,-151.0,0.00041276,120]
[422175490,1778647847000,-151.0,0.00041276,120]
[422175488,1778647847000,-25000.0,0.00041274,15]
[422175491,1778647847000,-253.052155,0.00041276,120]
[422175493,1778647847000,-151.0,0.00041276,14]
[422175492,1778647847000,-151.0,0.00041276,14]
[422175495,1778647847000,-226.268601,0.00041276,120]
[422175497,1778647847000,-1107.202896,0.00041276,120]
[422175512,1778647847000,-1934.38338737,0.00041282,6]
[422175498,1778647847000,-1107.202896,0.00041276,120]
[422175494,1778647847000,-162.767927,0.00041276,120]
[422175499,1778647847000,-158.075942,0.00041276,120]
[422175501,1778647847000,-975.595225,0.00041276,120]
[422175503,1778647847000,-975.595225,0.00041276,120]
[422175502,1778647847000,-975.595225,0.00041276,120]
[422175504,1778647847000,-151.0,0.00041276,120]
[422175505,1778647847000,-295.601213,0.00041276,120]
[422175507,1778647847000,-151.0,0.00041276,120]
[422175509,1778647847000,-152.0,0.00041282,6]
[422175508,1778647847000,-207.32822116,0.00041282,6]
[422175513,1778647847000,-2005.9555727,0.00041282,6]
[422175510,1778647847000,-227.35436347,0.00041282,6]
[422175511,1778647847000,-1865.36488657,0.00041282,6]
[422175496,1778647847000,-1107.202896,0.00041276,120]
[422175536,1778647847000,-500.0,0.00041283,60]
[422175605,1778647847000,-500.0,0.00041283,60]
[422175556,1778647847000,-500.0,0.00041283,60]
[422175577,1778647847000,-500.0,0.00041283,60]
[422175578,1778647847000,-500.0,0.00041283,60]
[422175582,1778647847000,-500.0,0.00041283,60]
[422175585,1778647847000,-500.0,0.00041283,60]
[422175584,1778647847000,-500.0,0.00041283,60]
[422175588,1778647847000,-500.0,0.00041283,60]
[422175587,1778647847000,-500.0,0.00041283,60]
[422175590,1778647847000,-500.0,0.00041283,60]
[422175589,1778647847000,-500.0,0.00041283,60]
[422175583,1778647847000,-500.0,0.00041283,60]
[422175581,1778647847000,-500.0,0.00041283,60]
[422175586,1778647847000,-500.0,0.00041283,60]
[422175592,1778647847000,-500.0,0.00041283,60]
[422175576,1778647847000,-500.0,0.00041283,60]
[422175593,1778647847000,-500.0,0.00041283,60]
[422175598,1778647847000,-500.0,0.00041283,60]
[422175595,1778647847000,-500.0,0.00041283,60]
[422175601,1778647847000,-500.0,0.00041283,60]
[422175594,1778647847000,-500.0,0.00041283,60]
[422175596,1778647847000,-500.0,0.00041283,60]
[422175599,1778647847000,-500.0,0.00041283,60]
[422175597,1778647847000,-500.0,0.00041283,60]
[422175602,1778647847000,-500.0,0.00041283,60]
[422175603,1778647847000,-500.0,0.00041283,60]
[422175604,1778647847000,-500.0,0.00041283,60]
[422175606,1778647847000,-500.0,0.00041283,60]
[422175607,1778647847000,-500.0,0.00041283,60]
[422175545,1778647847000,-500.0,0.00041283,60]
[422175600,1778647847000,-500.0,0.00041283,60]
[422175580,1778647847000,-500.0,0.00041283,60]
[422175591,1778647847000,-500.0,0.00041283,60]
[422175579,1778647847000,-500.0,0.00041283,60]
[422175574,1778647847000,-500.0,0.00041283,60]
[422175551,1778647847000,-500.0,0.00041283,60]
[422175547,1778647847000,-500.0,0.00041283,60]
[422175548,1778647847000,-500.0,0.00041283,60]
[422175546,1778647847000,-500.0,0.00041283,60]
[422175557,1778647847000,-500.0,0.00041283,60]
[422175550,1778647847000,-500.0,0.00041283,60]
[422175553,1778647847000,-500.0,0.00041283,60]
[422175554,1778647847000,-500.0,0.00041283,60]
[422175552,1778647847000,-500.0,0.00041283,60]
[422175555,1778647847000,-500.0,0.00041283,60]
[422175558,1778647847000,-500.0,0.00041283,60]
[422175560,1778647847000,-500.0,0.00041283,60]
[422175569,1778647847000,-500.0,0.00041283,60]
[422175549,1778647847000,-500.0,0.00041283,60]
[422175568,1778647847000,-500.0,0.00041283,60]
[422175567,1778647847000,-500.0,0.00041283,60]
[422175572,1778647847000,-500.0,0.00041283,60]
[422175575,1778647847000,-500.0,0.00041283,60]
[422175571,1778647847000,-500.0,0.00041283,60]
[422175570,1778647847000,-500.0,0.00041283,60]
[422175566,1778647847000,-500.0,0.00041283,60]
[422175573,1778647847000,-500.0,0.00041283,60]
[422175565,1778647847000,-500.0,0.00041283,60]
[422175563,1778647847000,-500.0,0.00041283,60]
[422175561,1778647847000,-500.0,0.00041283,60]
[422175562,1778647847000,-500.0,0.00041283,60]
[422175559,1778647847000,-500.0,0.00041283,60]
[422175564,1778647847000,-500.0,0.00041283,60]
[422175646,1778647848000,-1107.202896,0.00041292,120]
[422175644,1778647848000,-1107.202896,0.00041292,120]
[422175653,1778647848000,-975.595225,0.00041292,120]
[422175640,1778647848000,-1558.315031,0.00041292,20]
[422175642,1778647848000,-1107.202896,0.00041292,120]
[422175647,1778647848000,-1107.202896,0.00041292,120]
[422175652,1778647848000,-975.595225,0.00041292,120]
[422175651,1778647848000,-975.595225,0.00041292,120]
[422175643,1778647848000,-1107.202896,0.00041292,120]
[422175635,1778647848000,-1558.315031,0.00041292,20]
[422175650,1778647848000,-975.595225,0.00041292,120]
[422175645,1778647848000,-1107.202896,0.00041292,120]
[422175649,1778647848000,-975.595225,0.00041292,120]
[422175656,1778647848000,-151.0,0.00041292,120]
[422175654,1778647848000,-975.595225,0.00041292,120]
[422175655,1778647848000,-151.0,0.00041292,120]
[422175666,1778647848000,-289.443261,0.00041292,120]
[422175665,1778647848000,-289.443261,0.00041292,120]
[422175667,1778647848000,-289.443261,0.00041292,120]
[422175660,1778647848000,-151.0,0.00041292,120]
[422175663,1778647848000,-289.443261,0.00041292,120]
[422175661,1778647848000,-289.443261,0.00041292,120]
[422175664,1778647848000,-289.443261,0.00041292,120]
[422175659,1778647848000,-151.0,0.00041292,120]
[422175658,1778647848000,-975.595225,0.00041292,120]
[422175662,1778647848000,-289.443261,0.00041292,120]
[422175638,1778647848000,-1558.315031,0.00041292,20]
[422175648,1778647848000,-1107.202896,0.00041292,120]
[422175637,1778647848000,-1558.315031,0.00041292,20]
[422175668,1778647848000,-289.443261,0.00041292,120]
[422175630,1778647848000,-151.0,0.00041292,120]
[422175614,1778647848000,-640.533142,0.00041283,60]
[422175608,1778647848000,-500.0,0.00041283,60]
[422175609,1778647848000,-500.0,0.00041283,60]
[422175613,1778647848000,-500.0,0.00041283,60]
[422175611,1778647848000,-500.0,0.00041283,60]
[422175615,1778647848000,-1000.0,0.00041283,120]
[422175616,1778647848000,-156.9930624,0.00041288,30]
[422175612,1778647848000,-500.0,0.00041283,60]
[422175610,1778647848000,-500.0,0.00041283,60]
[422175617,1778647848000,-259.59833042,0.00041288,30]
[422175620,1778647848000,-154.95124944,0.00041291,120]
[422175619,1778647848000,-300.0,0.00041291,30]
[422175618,1778647848000,-300.0,0.00041291,30]
[422175636,1778647848000,-1558.315031,0.00041292,20]
[422175622,1778647848000,-154.0,0.00041292,120]
[422175629,1778647848000,-151.0,0.00041292,120]
[422175626,1778647848000,-152.0,0.00041292,120]
[422175628,1778647848000,-151.0,0.00041292,120]
[422175621,1778647848000,-227.94587569,0.00041291,120]
[422175624,1778647848000,-151.0,0.00041292,120]
[422175623,1778647848000,-191.0,0.00041292,120]
[422175625,1778647848000,-158.0,0.00041292,120]
[422175633,1778647848000,-1558.315031,0.00041292,20]
[422175632,1778647848000,-151.0,0.00041292,120]
[422175631,1778647848000,-151.0,0.00041292,120]
[422175639,1778647848000,-1558.315031,0.00041292,20]
[422175641,1778647848000,-1107.202896,0.00041292,120]
[422175634,1778647848000,-1558.315031,0.00041292,20]
[422175627,1778647848000,-151.0,0.00041292,120]
[422175671,1778647848000,-151.0,0.00041292,120]
[422175657,1778647848000,-975.595225,0.00041292,120]
[422175672,1778647848000,-151.0,0.00041292,120]
[422175702,1778647848000,-226.31751,0.00041292,120]
[422175706,1778647848000,-151.0,0.00041292,30]
[422175704,1778647848000,-151.0,0.00041292,30]
[422175708,1778647848000,-151.0,0.00041292,30]
[422175701,1778647848000,-226.31751,0.00041292,120]
[422175710,1778647848000,-154.410216,0.00041292,30]
[422175709,1778647848000,-493.245132,0.00041292,120]
[422175711,1778647848000,-493.245132,0.00041292,120]
[422175717,1778647848000,-493.245132,0.00041292,120]
[422175713,1778647848000,-493.245132,0.00041292,120]
[422175715,1778647848000,-493.245132,0.00041292,120]
[422175716,1778647848000,-151.0,0.00041292,120]
[422175718,1778647848000,-1170.488914,0.00041292,7]
[422175705,1778647848000,-493.245132,0.00041292,120]
[422175712,1778647848000,-493.245132,0.00041292,120]
[422175719,1778647848000,-1170.488914,0.00041292,7]
[422175720,1778647848000,-1170.488914,0.00041292,7]
[422175722,1778647848000,-1170.488914,0.00041292,7]
[422175732,1778647848000,-151.0,0.00041292,120]
[422175725,1778647848000,-1170.488914,0.00041292,7]
[422175724,1778647848000,-1170.488914,0.00041292,7]
[422175726,1778647848000,-151.0,0.00041292,120]
[422175721,1778647848000,-1170.488914,0.00041292,7]
[422175723,1778647848000,-1170.488914,0.00041292,7]
[422175727,1778647848000,-151.0,0.00041292,120]
[422175730,1778647848000,-151.0,0.00041292,120]
[422175729,1778647848000,-151.0,0.00041292,120]
[422175669,1778647848000,-231.853101,0.00041292,120]
[422175714,1778647848000,-151.0,0.00041292,120]
[422175700,1778647848000,-226.31751,0.00041292,120]
[422175731,1778647848000,-151.0,0.00041292,120]
[422175696,1778647848000,-226.31751,0.00041292,120]
[422175703,1778647848000,-226.31751,0.00041292,120]
[422175673,1778647848000,-151.0,0.00041292,120]
[422175675,1778647848000,-151.0,0.00041292,120]
[422175676,1778647848000,-151.0,0.00041292,7]
[422175670,1778647848000,-151.0,0.00041292,120]
[422175677,1778647848000,-151.0,0.00041292,7]
[422175678,1778647848000,-151.0,0.00041292,7]
[422175679,1778647848000,-151.0,0.00041292,7]
[422175680,1778647848000,-1341.707239,0.00041292,28]
[422175728,1778647848000,-151.0,0.00041292,120]
[422175681,1778647848000,-1341.707239,0.00041292,28]
[422175683,1778647848000,-1341.707239,0.00041292,28]
[422175685,1778647848000,-1341.707239,0.00041292,28]
[422175693,1778647848000,-151.0,0.00041292,120]
[422175674,1778647848000,-151.0,0.00041292,120]
[422175694,1778647848000,-151.0,0.00041292,120]
[422175682,1778647848000,-1341.707239,0.00041292,28]
[422175699,1778647848000,-226.31751,0.00041292,120]
[422175707,1778647848000,-493.245132,0.00041292,120]
[422175697,1778647848000,-226.31751,0.00041292,120]
[422175695,1778647848000,-151.0,0.00041292,120]
[422175691,1778647848000,-151.0,0.00041292,120]
[422175698,1778647848000,-226.31751,0.00041292,120]
[422175688,1778647848000,-151.0,0.00041292,120]
[422175684,1778647848000,-1341.707239,0.00041292,28]
[422175692,1778647848000,-151.0,0.00041292,120]
[422175690,1778647848000,-151.0,0.00041292,120]
[422175687,1778647848000,-1341.707239,0.00041292,28]
[422175686,1778647848000,-1341.707239,0.00041292,28]
[422175689,1778647848000,-152.305271,0.00041292,120]
[422175768,1778647849000,-472.848313,0.00041292,120]
[422175779,1778647849000,-151.0,0.00041292,120]
[422175769,1778647849000,-472.848313,0.00041292,120]
[422175771,1778647849000,-348.961651,0.00041292,120]
[422175767,1778647849000,-348.961651,0.00041292,120]
[422175772,1778647849000,-472.848313,0.00041292,120]
[422175761,1778647849000,-472.848313,0.00041292,120]
[422175754,1778647849000,-162.226956,0.00041292,120]
[422175780,1778647849000,-162.157036,0.00041292,120]
[422175760,1778647849000,-472.848313,0.00041292,120]
[422175775,1778647849000,-159.119438,0.00041292,120]
[422175763,1778647849000,-348.961651,0.00041292,120]
[422175782,1778647849000,-151.0,0.00041292,120]
[422175770,1778647849000,-348.961651,0.00041292,120]
[422175777,1778647849000,-151.0,0.00041292,120]
[422175773,1778647849000,-472.848313,0.00041292,120]
[422175776,1778647849000,-154.028992,0.00041292,120]
[422175774,1778647849000,-151.0,0.00041292,120]
[422175781,1778647849000,-151.0,0.00041292,120]
[422175791,1778647849000,-227.602348,0.00041292,120]
[422175784,1778647849000,-151.0,0.00041292,120]
[422175786,1778647849000,-227.602348,0.00041292,120]
[422175783,1778647849000,-156.662853,0.00041292,120]
[422175794,1778647849000,-227.602348,0.00041292,120]
[422175766,1778647849000,-348.961651,0.00041292,120]
[422175792,1778647849000,-227.602348,0.00041292,120]
[422175778,1778647849000,-151.0,0.00041292,120]
[422175759,1778647849000,-348.961651,0.00041292,120]
[422175745,1778647849000,-178.384317,0.00041292,120]
[422175757,1778647849000,-162.226956,0.00041292,120]
[422175785,1778647849000,-151.0,0.00041292,120]
[422175735,1778647849000,-151.0,0.00041292,120]
[422175733,1778647849000,-151.0,0.00041292,120]
[422175737,1778647849000,-178.384317,0.00041292,120]
[422175736,1778647849000,-151.0,0.00041292,120]
[422175740,1778647849000,-178.384317,0.00041292,120]
[422175739,1778647849000,-151.0,0.00041292,120]
[422175734,1778647849000,-178.384317,0.00041292,120]
[422175738,1778647849000,-151.0,0.00041292,120]
[422175743,1778647849000,-151.0,0.00041292,120]
[422175741,1778647849000,-151.0,0.00041292,120]
[422175748,1778647849000,-151.0,0.00041292,120]
[422175758,1778647849000,-348.961651,0.00041292,120]
[422175744,1778647849000,-178.384317,0.00041292,120]
[422175751,1778647849000,-162.226956,0.00041292,120]
[422175749,1778647849000,-151.0,0.00041292,120]
[422175750,1778647849000,-162.226956,0.00041292,120]
[422175747,1778647849000,-178.384317,0.00041292,120]
[422175742,1778647849000,-178.384317,0.00041292,120]
[422175746,1778647849000,-178.384317,0.00041292,120]
[422175752,1778647849000,-162.226956,0.00041292,120]
[422175755,1778647849000,-162.226956,0.00041292,120]
[422175764,1778647849000,-472.848313,0.00041292,120]
[422175756,1778647849000,-162.226956,0.00041292,120]
[422175765,1778647849000,-472.848313,0.00041292,120]
[422175762,1778647849000,-348.961651,0.00041292,120]
[422175753,1778647849000,-162.226956,0.00041292,120]
[422175793,1778647849000,-227.602348,0.00041292,120]
[422175820,1778647849000,-151.0,0.00041292,120]
[422175788,1778647849000,-227.602348,0.00041292,120]
[422175833,1778647849000,-151.611104,0.00041292,120]
[422175831,1778647849000,-151.0,0.00041292,120]
[422175823,1778647849000,-151.0,0.00041292,120]
[422175827,1778647849000,-151.0,0.00041292,120]
[422175825,1778647849000,-189.784298,0.00041292,120]
[422175824,1778647849000,-151.0,0.00041292,120]
[422175830,1778647849000,-151.0,0.00041292,120]
[422175829,1778647849000,-151.0,0.00041292,120]
[422175790,1778647849000,-811.47,0.00041292,60]
[422175832,1778647849000,-151.0,0.00041292,120]
[422175842,1778647849000,-384.3454892,0.00041292,2]
[422175840,1778647849000,-177.92041079,0.00041292,2]
[422175837,1778647849000,-10996.61261601,0.00041292,2]
[422175844,1778647849000,-1058.09329043,0.00041292,2]
[422175834,1778647849000,-132953.47135786,0.00041292,2]
[422175836,1778647849000,-15191.25037173,0.00041292,2]
[422175839,1778647849000,-234.43953602,0.00041292,2]
[422175838,1778647849000,-148994.53447561,0.00041292,2]
[422175843,1778647849000,-1309.36404567,0.00041292,2]
[422175835,1778647849000,-255.42080381,0.00041292,7]
[422175845,1778647849000,-677.78137664,0.00041292,2]
[422175841,1778647849000,-501.52531698,0.00041292,3]
[422175846,1778647849000,-699.27462414,0.00041292,2]
[422175847,1778647849000,-641.72669842,0.00041292,2]
[422175848,1778647849000,-226.93081946,0.00041292,5]
[422175849,1778647849000,-219.99806742,0.00041292,2]
[422175850,1778647849000,-1406045.94866768,0.00041292,30]
[422175821,1778647849000,-749.321439,0.00041292,120]
[422175822,1778647849000,-749.321439,0.00041292,120]
[422175828,1778647849000,-151.0,0.00041292,120]
[422175816,1778647849000,-151.0,0.00041292,120]
[422175789,1778647849000,-227.602348,0.00041292,120]
[422175787,1778647849000,-227.602348,0.00041292,120]
[422175826,1778647849000,-151.0,0.00041292,120]
[422175806,1778647849000,-161.628956,0.00041292,30]
[422175796,1778647849000,-276.303252,0.00041292,120]
[422175801,1778647849000,-276.303252,0.00041292,120]
[422175802,1778647849000,-151.0,0.00041292,30]
[422175797,1778647849000,-500.0,0.00041292,3]
[422175798,1778647849000,-276.303252,0.00041292,120]
[422175799,1778647849000,-500.0,0.00041292,3]
[422175800,1778647849000,-151.0,0.00041292,30]
[422175804,1778647849000,-151.0,0.00041292,30]
[422175805,1778647849000,-276.303252,0.00041292,120]
[422175795,1778647849000,-500.0,0.00041292,3]
[422175807,1778647849000,-276.303252,0.00041292,120]
[422175803,1778647849000,-276.303252,0.00041292,120]
[422175815,1778647849000,-151.0,0.00041292,120]
[422175813,1778647849000,-749.321439,0.00041292,120]
[422175811,1778647849000,-749.321439,0.00041292,120]
[422175812,1778647849000,-749.321439,0.00041292,120]
[422175810,1778647849000,-153.823368,0.00041292,120]
[422175817,1778647849000,-749.321439,0.00041292,120]
[422175818,1778647849000,-749.321439,0.00041292,120]
[422175819,1778647849000,-151.0,0.00041292,120]
[422175809,1778647849000,-276.303252,0.00041292,120]
[422175808,1778647849000,-276.303252,0.00041292,120]
[422175814,1778647849000,-749.321439,0.00041292,120]
[422175870,1778647850000,-8847.68295881,0.00041292,30]
[422175858,1778647850000,-500.0,0.00014799,2]
[422175872,1778647850000,-8943.78386462,0.00041292,30]
[422175871,1778647850000,-8947.21879473,0.00041292,30]
[422175866,1778647850000,-6.17655911,0.00041292,30]
[422175868,1778647850000,-1136.0,0.00041292,30]
[422175867,1778647850000,-20232.96582522,0.00041292,30]
[422175865,1778647850000,-300.46344089,0.00037167,2]
[422175862,1778647850000,-1000.0,0.000411,30]
[422175859,1778647850000,-500.0,0.00014799,2]
[422175857,1778647850000,-500.0,0.00014799,2]
[422175860,1778647850000,-3836.91,0.00027397,10]
[422175856,1778647850000,-372.1626232,0.00014799,2]
[422175863,1778647850000,-29493.86393725,0.00041292,30]
[422175864,1778647850000,-2027.67609915,0.00041292,30]
[422175854,1778647850000,-500.0,0.00014799,2]
[422175855,1778647850000,-127.8373768,0.00014799,2]
[422175851,1778647850000,-2119.34644157,0.00041292,30]
[422175853,1778647850000,-20651.8363302,0.00041292,30]
[422175852,1778647850000,-219994.16333855,0.00041292,30]
[422175869,1778647850000,-6127.6262031,0.00041292,30]
[422175861,1778647850000,-300.0,0.00037167,2]
[422175873,1778647850000,-9077.54866152,0.00041292,30]
[422175886,1778647850000,-324.98,0.00026144,7]
[422175875,1778647850000,-467.335,0.000147,2]
[422175874,1778647850000,-7169.41503977,0.00041292,30]
[422175894,1778647850000,-1092.73919369,0.00041292,2]
[422175890,1778647850000,-584.0,0.00035098,30]
[422175892,1778647850000,-300.0,0.00037167,2]
[422175895,1778647850000,-2500.0,0.00041292,2]
[422175891,1778647850000,-300.4650572,0.00037167,2]
[422175888,1778647850000,-339.23,0.00026202,2]
[422175889,1778647850000,-34511.90093318,0.00033975,2]
[422175893,1778647850000,-565085.15134621,0.00041292,30]
[422175897,1778647850000,-1803.95927125,0.00041292,2]
[422175896,1778647850000,-350.44715896,0.00041292,2]
[422175881,1778647850000,-324.98,0.00026086,2]
[422175887,1778647850000,-339.23,0.00026173,7]
[422175877,1778647850000,-324.98,0.00026029,2]
[422175876,1778647850000,-59.66063144,0.000147,2]
[422175885,1778647850000,-339.23,0.00026144,7]
[422175879,1778647850000,-324.98,0.00026057,7]
[422175884,1778647850000,-339.23,0.00026116,2]
[422175878,1778647850000,-339.23,0.0002603,2]
[422175883,1778647850000,-324.98,0.00026115,2]
[422175880,1778647850000,-339.23,0.00026058,7]
[422175882,1778647850000,-339.23,0.00026087,2]
[422175918,1778647851000,-207.86355968,0.00041292,2]
[422175907,1778647851000,-373.7328084,0.00041292,2]
[422175913,1778647851000,-279.96809429,0.00041292,2]
[422175916,1778647851000,-2500.79690193,0.00041292,2]
[422175917,1778647851000,-884.6840627,0.00041292,2]
[422175902,1778647851000,-631.04250186,0.00041292,2]
[422175904,1778647851000,-1122.59261806,0.00041292,5]
[422175899,1778647851000,-3925.69498769,0.00041292,2]
[422175900,1778647851000,-934.42682344,0.00041292,2]
[422175903,1778647851000,-1626.10878297,0.00041292,2]
[422175905,1778647851000,-561.71208673,0.00041292,2]
[422175901,1778647851000,-493.34803,0.00041292,2]
[422175914,1778647851000,-412.46406343,0.00041292,2]
[422175906,1778647851000,-1036.51012117,0.00041292,2]
[422175910,1778647851000,-1881.78150573,0.00041292,2]
[422175898,1778647851000,-1100.0,0.00041292,2]
[422175911,1778647851000,-1145.66174172,0.00041292,2]
[422175929,1778647851000,-509.0,0.000147,2]
[422175928,1778647851000,-54907.16813455,0.000147,2]
[422175927,1778647851000,-140.58065688,0.000147,2]
[422175926,1778647851000,-44773.37578508,0.00041292,30]
[422175921,1778647851000,-2228.26412724,0.00041292,2]
[422175922,1778647851000,-897.80458281,0.00041292,2]
[422175920,1778647851000,-1149.80244039,0.00041292,2]
[422175912,1778647851000,-5388.92214505,0.00041292,4]
[422175923,1778647851000,-471.98327211,0.00041292,2]
[422175924,1778647851000,-150.0,0.00041292,2]
[422175908,1778647851000,-2259.32245643,0.00041292,2]
[422175919,1778647851000,-289.78955895,0.00041292,2]
[422175915,1778647851000,-3239.58326428,0.00041292,2]
[422175909,1778647851000,-17590.18828337,0.00041292,60]
[422175925,1778647851000,-88877.38134469,0.00041292,30]
[422175930,1778647915000,-300.0,0.00014699,2]
[422175947,1778648469000,220.38,0.00027035,120]
[422175950,1778648541000,156.49,9.422e-05,2]
[422175951,1778648559000,161.0,0.000273,120]
[422175955,1778648560000,161.0,0.000273,120]
[422175956,1778648582000,161.0,0.000273,120]
[422175958,1778648703000,186.7628148,0.0002739,120]
[422175964,1778648802000,-61.5259223,0.000107,2]
[422175963,1778648802000,-150.0,0.00010699,2]
[422175968,1778648829000,-44070.93045048,0.000107,2]
[422175967,1778648829000,-300.0,0.00010699,2]
[422175976,1778648946000,-133.4658814,0.00013451,2]
[422175975,1778648946000,-3445.56,0.00013369,2]
[422175974,1778648946000,-587.0,0.00012928,2]
[422175973,1778648946000,-420.0,0.00011761,2]
[422175971,1778648946000,-300.0,0.00010699,2]
[422175972,1778648946000,-50066.33490718,0.000107,2]
[422175982,1778649031000,-264.5341186,0.00013451,2]
[422175983,1778649031000,-150.0,0.00013487,2]
[422175985,1778649031000,-150.0,0.00013488,2]
[422175984,1778649031000,-150.0,0.00013488,2]
[422176015,1778649032000,-1202.36950311,0.000145,2]
[422176017,1778649032000,-2386.14560952,0.00014506,2]
[422176013,1778649032000,-214.91342137,0.00014467,2]
[422176011,1778649032000,-1090.051,0.00014406,2]
[422176012,1778649032000,-150.0,0.00014441,2]
[422176010,1778649032000,-155.29,0.00014396,2]
[422176002,1778649032000,-150.0,0.00014087,2]
[422176007,1778649032000,-166.66,0.00014384,2]
[422176006,1778649032000,-150.0,0.00014305,2]
[422176005,1778649032000,-166.66,0.00014247,2]
[422176003,1778649032000,-166.66,0.0001411,2]
[422176001,1778649032000,-150.0,0.00014033,2]
[422176004,1778649032000,-150.0,0.00014169,2]
[422176016,1778649032000,-797.63049689,0.000145,2]
[422176009,1778649032000,-150.0,0.00014387,2]
[422176000,1778649032000,-250.0,0.00014,2]
[422175998,1778649032000,-1200.0,0.00013989,2]
[422176018,1778649032000,-14297.16582586,0.00014506,2]
[422175997,1778649032000,-166.66,0.00013973,2]
[422175995,1778649032000,-166.66,0.00013836,2]
[422175996,1778649032000,-150.0,0.00013896,2]
[422175992,1778649032000,-166.66,0.00013699,2]
[422175988,1778649032000,-150.0,0.00013488,2]
[422175993,1778649032000,-150.0,0.0001376,2]
[422175991,1778649032000,-150.07363201,0.00013661,2]
[422175994,1778649032000,-150.0,0.00013787,2]
[422175990,1778649032000,-150.0,0.00013624,2]
[422175989,1778649032000,-151.77,0.00013601,2]
[422175987,1778649032000,-150.0,0.00013488,2]
[422175986,1778649032000,-150.0,0.00013488,2]
[422175999,1778649032000,-51923.55580954,0.0001399,2]
[422176019,1778649032000,-151.31806171,0.00014506,2]
[422176050,1778649032000,-120191.66468452,0.000146,2]
[422176021,1778649032000,-14448.48388755,0.0001455,2]
[422176020,1778649032000,-10025.9623907,0.00014533,2]
[422176055,1778649032000,-1623.72,0.000146,2]
[422176056,1778649032000,-4667.31855558,0.000146,2]
[422176054,1778649032000,-6127.228,0.000146,2]
[422176052,1778649032000,-28813.17145799,0.000146,2]
[422176053,1778649032000,-8408.46727034,0.000146,2]
[422176051,1778649032000,-1254.41808677,0.000146,2]
[422176049,1778649032000,-4932.3562,0.000146,2]
[422176047,1778649032000,-3972.27252492,0.000146,2]
[422176043,1778649032000,-500.0,0.00014599,2]
[422176046,1778649032000,-343.09503143,0.00014599,2]
[422176048,1778649032000,-204.72963028,0.000146,2]
[422176044,1778649032000,-500.0,0.00014599,2]
[422176042,1778649032000,-370.63168091,0.00014599,2]
[422176041,1778649032000,-500.0,0.00014599,2]
[422176045,1778649032000,-500.0,0.00014599,2]
[422176038,1778649032000,-500.0,0.00014599,2]
[422176040,1778649032000,-500.0,0.00014599,2]
[422176024,1778649032000,-10025.96239065,0.00014574,2]